bitfinex/quotes_ETHUSD_20250411
["timestamp","ask_amount","ask_price","bid_price","bid_amount"]
[1744393028745,0.05,1570.4,1570.3,16.2782]
[1744393029171,0.05,1570.4,1570.3,6.91]
[1744393029365,0.05,1570.4,1570.3,13.34187242]
[1744393029579,0.05,1570.4,1570.3,13.2782]
[1744393030159,0.05,1570.4,1570.3,13.8282]
[1744393030385,0.05,1570.4,1570.3,16.96510651]
[1744393030698,0.05,1570.4,1570.3,17.72460651]
[1744393032980,1e-05,1570.4,1570.3,20.72460651]
[1744393033949,0.794,1571.3,1571.0,6.36512]
[1744393034181,0.14570698,1571.2,1571.0,24.50319579]
[1744393034390,6.36496,1571.1,1571.0,6.907]
[1744393034606,7.14384,1571.0,1570.7,6.907]
[1744393034788,0.7781,1571.0,1570.7,6.907]
[1744393034961,6.36618,1570.8,1570.7,6.907]
[1744393035166,7.78217584,1570.8,1570.7,6.907]
[1744393035794,6.36704,1570.6,1570.4,6.907]
[1744393036166,0.14059226,1570.5,1570.4,13.33828965]
[1744393036474,0.7628,1570.7,1570.4,13.27462]
[1744393036667,0.7628,1570.7,1570.4,19.6423]
[1744393037006,0.14132321,1570.6,1570.5,6.36739]
[1744393037189,0.14132321,1570.6,1570.5,6.91739]
[1744393037497,6.36601,1570.9,1570.6,6.36683]
[1744393037697,13.52141,1571.0,1570.6,12.73369]
[1744393037906,6.36512,1571.1,1570.8,6.366]
[1744393038079,1.879995,1571.1,1570.8,13.33565381]
[1744393038400,1.879995,1571.1,1570.8,13.272]
[1744393038606,7.14774,1571.3,1571.0,6.36517]
[1744393038804,7.14774,1571.3,1571.0,12.73038]
[1744393039010,0.05,1571.4,1571.2,0.55]
[1744393039310,12.42943,1572.5,1572.1,6.36077]
[1744393039515,2.078543,1572.4,1571.9,6.905]
[1744393039811,0.8306,1572.4,1572.1,4.86591579]
[1744393040109,6.36066,1572.2,1571.6,0.7961]
[1744393040290,6.36052,1572.2,1571.8,6.36199]
[1744393040606,6.40995,1572.4,1571.7,3.48600327]
[1744393040802,6.36026,1572.3,1571.9,6.36148]
[1744393041172,12.76993,1572.4,1572.0,6.36129]
[1744393041503,0.05,1572.4,1572.2,6.36049]
[1744393041702,0.05,1572.4,1572.1,0.52893465]
[1744393042034,0.05,1572.4,1572.1,6.36075]
[1744393042550,0.05,1572.4,1572.1,0.06359881]
[1744393042686,0.05,1572.4,1572.0,6.36113]
[1744393042886,0.05,1572.4,1572.0,8.18361738]
[1744393043087,6.36024,1572.3,1572.0,1.82248738]
[1744393043409,0.05,1572.4,1572.0,8.18379738]
[1744393043588,0.05,1572.4,1572.1,6.36069]
[1744393043783,0.05,1572.4,1572.1,12.72146]
[1744393044089,0.05,1572.4,1572.2,14.05657282]
[1744393044422,0.05,1572.4,1572.3,6.3601]
[1744393044618,0.05,1572.4,1572.3,14.77601579]
[1744393045226,0.05,1572.4,1572.3,4.86591579]
[1744393045520,0.05,1572.4,1572.3,14.22601579]
[1744393046395,0.05,1572.4,1572.2,6.36031]
[1744393046585,0.05,1572.4,1572.1,12.7216]
[1744393046785,0.05,1572.4,1572.3,9.3601]
[1744393047024,0.19877231,1572.4,1572.1,6.36078]
[1744393047194,6.36072,1572.2,1571.8,6.36212]
[1744393047393,0.14283169,1572.2,1571.8,6.36212]
[1744393047629,0.14283169,1572.2,1571.9,6.3617]
[1744393047789,0.14283169,1572.2,1572.1,6.36091]
[1744393047983,0.8262,1572.4,1572.1,6.36091]
[1744393048308,0.14701094,1572.3,1572.0,6.36116]
[1744393048621,0.8262,1572.4,1572.0,6.36128]
[1744393048811,0.8262,1572.4,1572.1,6.36086]
[1744393048982,0.8262,1572.4,1572.1,6.36075]
[1744393049525,7.18591,1572.4,1572.1,6.36075]
[1744393049732,6.36014,1572.3,1572.0,6.3613]
[1744393050047,0.05,1572.4,1572.3,9.9101]
[1744393050200,0.05,1572.4,1572.3,16.46663817]
[1744393050402,0.05,1572.4,1572.3,16.40305979]
[1744393051009,0.7731,1573.0,1572.8,12.716]
[1744393051250,0.7535,1573.3,1572.9,0.06356957]
[1744393051536,0.4518748,1573.4,1573.3,9.90606]
[1744393051724,0.4518748,1573.4,1573.1,6.35669]
[1744393052033,0.4518748,1573.4,1573.1,0.47100872]
[1744393052252,0.4518748,1573.4,1573.1,6.42021357]
[1744393052403,0.4518748,1573.4,1573.1,0.06355357]
[1744393052404,6.35646,1573.3,1573.1,0.06355357]
[1744393052739,0.4518748,1573.4,1573.1,6.35678]
[1744393052899,8.12405528,1573.4,1573.0,6.35724]
[1744393053100,6.35645,1573.3,1572.9,0.06355775]
[1744393053413,0.4518748,1573.4,1573.2,12.7126]
[1744393053617,0.4518748,1573.4,1573.2,6.35627]
[1744393053815,0.4518748,1573.4,1573.1,9.35685]
[1744393054024,0.4518748,1573.4,1573.2,6.35631]
[1744393054229,0.4518748,1573.4,1573.3,9.90606]
[1744393054425,0.4518748,1573.4,1573.3,10.75319918]
[1744393054641,0.4518748,1573.4,1573.3,10.68966]
[1744393054942,0.4518748,1573.4,1573.3,11.17378011]
[1744393055152,0.4518748,1573.4,1573.3,13.4133807]
[1744393055799,0.4518748,1573.4,1573.3,12.8633807]
[1744393056002,0.4518748,1573.4,1573.3,11.17378011]
[1744393058282,0.4518748,1573.4,1573.3,3.48412011]
[1744393058417,0.4518748,1573.4,1573.3,9.9037205]
[1744393058826,0.4518748,1573.4,1573.3,9.84018011]
[1744393059145,13.1634148,1573.4,1573.1,2.94550204]
[1744393059346,6.8075448,1573.4,1573.0,6.35708]
[1744393059535,6.35623,1573.3,1572.9,20.21426]
[1744393059720,6.35649,1573.2,1572.9,13.85663]
[1744393059920,6.35623,1573.3,1573.0,0.06356483]
[1744393060132,6.8075848,1573.4,1573.0,6.42057483]
[1744393060305,6.8075848,1573.4,1572.9,7.499]
[1744393060306,6.3562,1573.3,1572.9,13.85663]
[1744393060648,6.35647,1573.2,1573.0,0.06356021]
[1744393060870,6.35702,1573.1,1572.9,7.499]
[1744393061038,7.17074,1573.3,1572.9,13.85644]
[1744393061750,6.35652,1573.2,1572.9,9.56775793]
[1744393062064,7.17081,1573.3,1573.0,0.06356687]
[1744393062277,0.8146,1573.3,1573.1,6.35672]
[1744393062428,0.8146,1573.3,1573.0,6.35722]
[1744393062771,0.8146,1573.3,1572.9,15.92539793]
[1744393062772,0.4518748,1573.4,1573.2,6.35627]
[1744393063066,0.4518748,1573.4,1573.2,6.35626]
[1744393063236,0.4518748,1573.4,1573.3,6.35606]
[1744393063628,0.4518748,1573.4,1573.3,13.85406]
[1744393063833,0.4518748,1573.4,1573.3,7.498]
[1744393064178,0.4518748,1573.4,1573.3,6.35606]
[1744393064350,0.4518748,1573.4,1573.3,12.54071209]
[1744393064551,0.4518748,1573.4,1573.3,20.03871209]
[1744393064864,0.4518748,1573.4,1573.3,21.38271209]
[1744393065662,0.4518748,1573.4,1573.3,24.38271209]
[1744393066045,0.4518748,1573.4,1573.3,18.9667963]
[1744393066267,0.4518748,1573.4,1573.3,23.83271209]
[1744393066840,4.8e-06,1573.4,1573.3,24.38271209]
[1744393067250,0.025,1574.0,1573.9,6.35364]
[1744393067585,0.025,1574.0,1573.9,6.41716304]
[1744393067886,0.025,1574.0,1573.9,6.41216304]
[1744393068082,0.025,1574.0,1573.9,6.34864]
[1744393068399,0.025,1574.0,1573.9,6.41216587]
[1744393068604,6.37843,1574.0,1573.8,7.497]
[1744393068773,7.11247,1573.9,1573.5,20.20733]
[1744393069294,0.7587,1573.9,1573.6,6.35478]
[1744393069507,0.7587,1573.9,1573.7,6.41785674]
[1744393069708,0.025,1574.0,1573.7,6.41784674]
[1744393069920,0.025,1574.0,1573.8,6.35375]
[1744393070200,0.025,1574.0,1573.9,6.41716189]
[1744393070403,0.15053748,1574.0,1573.9,19.26555579]
[1744393070612,0.025,1574.0,1573.9,19.26555579]
[1744393070968,0.025,1574.0,1573.9,7.496]
[1744393071165,0.025,1574.0,1573.9,7.22876648]
[1744393071368,0.025,1574.0,1573.9,8.26200839]
[1744393071583,0.05,1574.4,1574.3,6.35202]
[1744393071908,0.05,1574.4,1574.3,11.28144355]
[1744393072078,0.05,1574.4,1574.2,20.20053]
[1744393072287,0.05,1574.4,1574.3,6.35202]
[1744393072677,0.05,1574.4,1574.2,13.84823]
[1744393072909,0.05,1574.4,1574.2,16.35492058]
[1744393073118,0.05,1574.4,1574.2,7.496]
[1744393073420,0.05,1574.4,1574.0,13.84801]
[1744393073421,7.15222,1574.4,1574.0,13.84801]
[1744393073585,6.35216,1574.3,1574.1,0.06351711]
[1744393073923,6.35216,1574.3,1574.1,0.0635188]
[1744393074125,6.35313,1574.1,1573.7,18.71524579]
[1744393074325,6.987756,1574.2,1573.8,6.41722847]
[1744393074484,6.35214,1574.3,1573.8,0.06352847]
[1744393074818,0.8005,1574.4,1573.9,4.86591579]
[1744393075029,0.8005,1574.4,1574.1,17.57125579]
[1744393075030,0.05,1574.4,1574.1,17.57125579]
[1744393075224,0.05,1574.4,1574.2,0.06351222]
[1744393075525,0.05,1574.4,1574.1,12.65856424]
[1744393075726,0.05,1574.4,1574.1,14.14535845]
[1744393075925,0.05,1574.4,1574.1,21.64035845]
[1744393076134,0.05,1574.4,1574.2,0.06351222]
[1744393078328,0.05,1574.4,1574.2,6.41580222]
[1744393078491,6.35165,1574.4,1574.1,13.84762]
[1744393078693,13.48986,1574.5,1574.1,20.20033]
[1744393079022,6.35236,1574.3,1574.1,7.495]
[1744393079198,6.35256,1574.2,1573.8,13.84793]
[1744393079535,6.35256,1574.2,1573.9,0.06352489]
[1744393079834,7.13823,1574.5,1574.1,6.35271]
[1744393080133,0.7869,1574.5,1574.2,6.41580221]
[1744393080344,6.35263,1574.2,1573.8,14.6516]
[1744393080643,7.12643,1574.1,1573.8,6.35387]
[1744393080935,7.12643,1574.1,1573.7,6.35439]
[1744393080936,6.35332,1574.0,1573.7,6.35439]
[1744393081088,6.35391,1573.9,1573.6,0.0635324]
[1744393081294,6.35379,1573.9,1573.6,6.4183724]
[1744393081799,12.70764,1573.9,1573.6,0.0635324]
[1744393081993,6.35324,1574.0,1573.5,61.89991579]
[1744393082200,6.35374,1573.9,1573.6,0.06353867]
[1744393082415,6.35374,1573.9,1573.6,6.41821867]
[1744393082732,6.35331,1574.0,1573.7,6.35433]
[1744393083026,12.70799,1573.9,1573.5,69.74425]
[1744393083333,6.35409,1573.8,1573.6,0.063541]
[1744393083758,6.35459,1573.7,1573.5,57.034]
[1744393083976,12.7077,1573.9,1573.5,69.09232]
[1744393084250,7.15538,1574.3,1573.6,0.778]
[1744393084420,12.70624,1574.1,1573.7,6.35419]
[1744393084625,7.18154,1574.0,1573.8,0.06353377]
[1744393084953,7.18165,1574.0,1573.7,12.77227383]
[1744393085113,7.18165,1574.0,1573.7,12.77219383]
[1744393085309,13.53514,1574.0,1573.7,6.41786383]
[1744393085513,13.53514,1574.0,1573.6,7.11852]
[1744393085714,6.35377,1573.9,1573.6,6.45244548]
[1744393085956,6.35377,1573.9,1573.6,12.80717548]
[1744393086152,6.35415,1573.8,1573.6,6.45244548]
[1744393086358,12.70835,1573.8,1573.6,6.45244548]
[1744393086560,6.35415,1573.8,1573.6,6.45244548]
[1744393087050,6.35415,1573.8,1573.5,69.09253]
[1744393087353,12.70851,1573.8,1573.5,57.034]
[1744393087560,0.8283,1574.0,1573.6,0.06354075]
[1744393087723,0.8283,1574.0,1573.7,6.35408]
[1744393087928,0.8329,1574.2,1573.8,0.06353232]
[1744393088127,13.53645,1574.4,1574.1,6.35271]
[1744393088344,13.53645,1574.4,1574.1,12.70541]
[1744393088345,7.18455,1574.4,1574.1,12.70541]
[1744393088659,0.33141424,1574.6,1574.1,12.70541]
[1744393088660,1.2297748,1574.9,1574.5,6.35122]
[1744393088953,6.3502,1574.8,1574.5,7.551]
[1744393089118,6.35061,1574.7,1574.5,0.0635033]
[1744393089460,7.10258,1574.6,1574.0,0.55]
[1744393089615,0.7517,1574.6,1574.4,6.3514]
[1744393089815,6.35122,1574.5,1574.1,11.21857579]
[1744393090040,13.45361,1574.6,1574.2,6.35213]
[1744393090246,0.8287,1574.8,1574.2,7.55]
[1744393090448,6.35065,1574.7,1574.3,6.35186]
[1744393090659,12.70136,1574.7,1574.3,6.35186]
[1744393090820,12.70136,1574.7,1574.3,8.377282]
[1744393091021,6.35065,1574.7,1574.3,14.729162]
[1744393091216,12.70127,1574.7,1574.3,14.729162]
[1744393091537,13.0963848,1574.9,1574.5,11.21703579]
[1744393091720,7.13787,1574.8,1574.5,6.35107]
[1744393091917,7.13787,1574.8,1574.5,7.700522]
[1744393092239,7.13787,1574.8,1574.4,7.14345]
[1744393092240,0.7878,1574.8,1574.4,7.14345]
[1744393092444,0.7878,1574.8,1574.4,6.35147]
[1744393092756,0.3968748,1574.9,1574.5,6.41451277]
[1744393092757,6.7466548,1574.9,1574.5,6.41451277]
[1744393093053,0.3968748,1574.9,1574.5,7.61350277]
[1744393093265,0.0089007,1575.2,1574.8,0.55]
[1744393093420,0.0089007,1575.2,1575.1,11.98611579]
[1744393093618,0.0089007,1575.2,1575.1,20.14858464]
[1744393093923,7e-07,1575.4,1575.3,10.66549]
[1744393094240,7e-07,1575.4,1575.3,17.23277579]
[1744393094440,2.8e-06,1575.5,1575.4,6.89759]
[1744393094659,0.05,1576.4,1576.0,7.11238]
[1744393094827,0.05,1576.4,1575.8,6.34591]
[1744393094828,6.34463,1576.2,1575.8,6.34591]
[1744393095034,6.34626,1575.8,1575.3,63.19838579]
[1744393095358,6.34731,1575.5,1575.1,26.17681579]
[1744393095541,6.34731,1575.5,1574.8,6.35]
[1744393095542,7.26132079,1575.7,1574.8,13.55619587]
[1744393095745,6.34775,1575.4,1575.0,6.34906]
[1744393095958,6.34741,1575.5,1575.1,6.34863]
[1744393096250,12.69483,1575.5,1575.1,14.19463]
[1744393096564,6.34954,1575.0,1574.6,57.43842028]
[1744393096862,0.12440971,1574.9,1574.7,6.35025]
[1744393097017,6.47435971,1574.9,1574.6,51.08775028]
[1744393097217,6.34962,1574.9,1574.6,50.27735028]
[1744393097434,6.47349677,1574.8,1574.6,50.27735028]
[1744393098243,6.35057,1574.7,1574.3,9.206742]
[1744393098483,6.35084,1574.6,1574.4,0.06350504]
[1744393098685,0.14667423,1574.6,1574.4,0.06350504]
[1744393098875,6.34963,1574.9,1574.5,6.35122]
[1744393099078,6.35018,1574.8,1574.6,8.479122]
[1744393099281,0.14841929,1574.8,1574.3,2.854922]
[1744393099486,6.35152,1574.5,1574.3,7.844]
[1744393099689,6.35089,1574.6,1574.3,7.844]
[1744393100004,6.35005,1574.8,1574.4,6.41485078]
[1744393100181,0.8213,1574.9,1574.3,7.844]
[1744393100369,6.35058,1574.7,1574.3,7.844]
[1744393100569,12.7022,1574.6,1574.4,0.7844]
[1744393100760,6.3515,1574.5,1574.2,7.844]
[1744393100959,6.35177,1574.4,1574.2,7.844]
[1744393101704,6.35162,1574.4,1573.9,13.41322934]
[1744393101901,6.35282,1574.2,1573.9,19.76671934]
[1744393102060,6.35211,1574.3,1574.0,0.06352134]
[1744393102262,6.35211,1574.3,1574.0,2.68189341]
[1744393102563,12.70436,1574.3,1574.0,9.03498341]
[1744393102798,6.35244,1574.2,1574.0,2.61837207]
[1744393103095,12.70586,1574.1,1573.9,7.90752659]
[1744393103310,6.35324,1574.0,1573.9,7.844]
[1744393104207,6.3535,1574.0,1573.6,21.37196]
[1744393104498,6.35366,1573.9,1573.6,15.01718]
[1744393104735,6.3535,1574.0,1573.7,1.501718]
[1744393104736,6.35404,1573.8,1573.7,1.501718]
[1744393104866,6.35324,1574.0,1573.2,11.27709587]
[1744393105183,6.35414,1573.8,1573.3,7.90754373]
[1744393105368,12.7084,1573.8,1573.4,6.41879151]
[1744393105568,6.35483,1573.7,1573.4,2.12541766]
[1744393105797,6.35485,1573.6,1573.4,2.12541766]
[1744393105965,6.35483,1573.7,1573.4,2.12541766]
[1744393106166,6.35464,1573.7,1573.4,2.12541766]
[1744393106360,6.35364,1573.9,1573.5,6.355]
[1744393106361,6.27866,1573.9,1573.5,6.355]
[1744393106585,6.27866,1573.9,1573.6,0.69904152]
[1744393106770,6.35427,1573.8,1573.6,0.6355]
[1744393106994,6.35331,1574.0,1573.6,6.41835152]
[1744393107300,6.35331,1574.0,1573.6,6.41828152]
[1744393107501,6.35331,1574.0,1573.7,6.35432]
[1744393107700,13.48524,1574.1,1573.7,20.55365]
[1744393107889,13.4852,1574.1,1573.8,6.35402]
[1744393108092,6.35325,1574.0,1573.8,2.055334]
[1744393108276,6.35325,1574.0,1573.7,7.845]
[1744393108277,12.70758,1573.9,1573.7,7.845]
[1744393108481,12.70757,1573.9,1573.7,7.845]
[1744393108673,6.35333,1574.0,1573.7,7.90853706]
[1744393108874,6.35404,1573.8,1573.7,7.845]
[1744393109089,6.35404,1573.8,1573.7,8.6295]
[1744393109406,6.35404,1573.8,1573.7,7.845]
[1744393109602,6.35375,1573.9,1573.7,7.845]
[1744393109907,6.35366,1573.9,1573.7,7.845]
[1744393110108,6.35333,1574.0,1573.7,7.845]
[1744393110411,6.35333,1574.0,1573.7,20.61709071]
[1744393110577,13.48525,1574.1,1573.8,2.12524282]
[1744393110774,17.19548,1574.7,1574.1,6.35259]
[1744393110775,7.11499,1574.5,1574.1,6.35259]
[1744393111025,12.70293,1574.5,1574.2,6.41594844]
[1744393111292,6.35163,1574.4,1574.2,0.06351844]
[1744393111678,6.35099,1574.6,1574.2,6.41573844]
[1744393111882,6.35136,1574.5,1574.3,0.64157384]
[1744393112082,12.70276,1574.5,1574.3,0.64157384]
[1744393112591,6.35162,1574.4,1574.3,0.64157384]
[1744393112794,6.35162,1574.4,1574.1,14.19872]
[1744393112992,6.35162,1574.4,1574.2,0.06351528]
[1744393113875,12.70347,1574.4,1574.1,7.846]
[1744393114099,6.35236,1574.3,1574.1,7.846]
[1744393114470,6.35243,1574.2,1574.1,7.846]
[1744393114895,6.3526,1574.2,1573.9,7.90952442]
[1744393115097,6.35324,1574.0,1573.9,10.11391035]
[1744393115309,6.3537,1573.9,1573.6,6.35481]
[1744393115514,12.70758,1573.9,1573.7,7.846]
[1744393115675,6.3529,1574.1,1573.8,6.3539]
[1744393115868,6.3529,1574.1,1573.8,12.77135757]
[1744393116195,12.70501,1574.2,1573.9,6.35362]
[1744393116402,7.15034,1574.3,1574.0,6.35312]
[1744393116614,6.35259,1574.2,1573.9,12.70703]
[1744393116911,6.35337,1574.0,1573.7,14.20033]
[1744393117088,6.35386,1573.9,1573.7,7.846]
[1744393117293,6.3533,1574.0,1573.7,7.846]
[1744393117492,6.35215,1574.3,1573.8,0.789]
[1744393117720,6.35215,1574.3,1574.0,6.35311]
[1744393117934,12.70351,1574.4,1574.0,6.35311]
[1744393118423,12.70351,1574.4,1574.1,6.35282]
[1744393118587,12.70351,1574.4,1574.0,6.35311]
[1744393118588,6.35207,1574.3,1574.0,6.35311]
[1744393118789,6.35207,1574.3,1574.0,6.988421]
[1744393118989,12.70425,1574.3,1574.0,0.635311]
[1744393119383,6.35207,1574.3,1574.0,0.635311]
[1744393119599,6.35207,1574.3,1574.0,0.69883059]
[1744393119883,6.35255,1574.2,1574.0,0.69883059]
[1744393120088,6.35283,1574.1,1574.0,0.06351959]
[1744393120282,6.35337,1574.0,1573.7,14.20038]
[1744393120524,6.35337,1574.0,1573.8,0.06353246]
[1744393120718,6.35167,1574.4,1573.8,6.41724246]
[1744393120719,6.35254,1574.2,1573.8,6.41724246]
[1744393120892,6.353,1574.1,1573.9,0.64172425]
[1744393121096,6.35324,1574.0,1573.9,0.64172425]
[1744393121294,12.70662,1574.0,1573.7,14.2003]
[1744393121503,6.35324,1574.0,1573.8,0.06353232]
[1744393122421,7.15855,1574.1,1573.8,0.06353232]
[1744393122422,6.35295,1574.1,1573.8,6.41754232]
[1744393122731,6.35247,1574.2,1573.9,12.70682]
[1744393122933,13.4784,1574.4,1574.0,7.18062]
[1744393123226,0.7747,1574.4,1573.7,14.20033]
[1744393123389,12.70603,1574.1,1573.8,6.35401]
[1744393123716,6.35328,1574.0,1573.7,20.55466]
[1744393123922,6.35364,1573.9,1573.8,7.846]
[1744393125430,6.35414,1573.8,1573.5,7.18257]
[1744393125631,6.35414,1573.8,1573.6,0.06354096]
[1744393126194,6.35445,1573.7,1573.6,0.06354096]
[1744393126393,6.35414,1573.8,1573.5,9.60598347]
[1744393126593,6.35375,1573.9,1573.6,6.35474]
[1744393126801,6.35375,1573.9,1573.5,9.60591347]
[1744393126802,6.35404,1573.8,1573.7,0.06353735]
[1744393127028,6.35474,1573.7,1573.5,2.35980062]
[1744393127330,6.35474,1573.7,1573.4,10.05987615]
[1744393127331,12.7094,1573.7,1573.4,10.05987615]
[1744393127531,6.35489,1573.6,1573.4,10.05987615]
[1744393127730,6.35489,1573.6,1573.4,8.0615483]
[1744393128031,0.7987,1574.0,1573.6,6.35485]
[1744393128219,13.5056,1574.0,1573.7,6.41795729]
[1744393128425,6.35258,1574.2,1573.8,6.35382]
[1744393128601,6.35389,1573.9,1573.7,1.27727773]
[1744393128804,6.35389,1573.9,1573.6,12.70944]
[1744393128999,6.35372,1573.9,1573.5,12.71029]
[1744393129206,6.35406,1573.8,1573.6,0.0635358]
[1744393129436,12.70752,1573.9,1573.6,0.0635358]
[1744393130125,6.35406,1573.8,1573.6,0.0635358]
[1744393130436,6.35464,1573.7,1573.4,14.35353]
[1744393130635,6.35464,1573.7,1573.4,20.80607548]
[1744393130839,12.70931,1573.7,1573.5,0.06354306]
[1744393131194,6.35485,1573.6,1573.5,0.06354306]
[1744393131437,12.70994,1573.6,1573.4,7.998]
[1744393131641,6.35485,1573.6,1573.4,8.06154853]
[1744393131804,12.70984,1573.6,1573.4,8.06154853]
[1744393132234,6.35525,1573.5,1573.4,8.06154853]
[1744393132440,6.35525,1573.5,1573.4,7.998]
[1744393132635,6.35566,1573.4,1573.3,49.515]
[1744393133637,6.35489,1573.6,1573.3,61.62245]
[1744393133943,0.7528,1573.5,1573.3,55.2665]
[1744393134146,0.7528,1573.5,1573.2,8.0]
[1744393134299,19.53215,1573.7,1573.3,6.41925593]
[1744393134499,19.53215,1573.7,1573.3,12.77528593]
[1744393134904,12.70992,1573.6,1573.3,6.3557]
[1744393135101,6.07,1573.7,1573.3,6.96898698]
[1744393135300,3.0,1574.2,1573.7,0.8285]
[1744393135301,6.35256,1574.2,1573.7,0.8285]
[1744393135533,6.35296,1574.1,1573.8,20.7714185]
[1744393135837,12.70533,1574.2,1573.9,6.4171686]
[1744393136000,6.35283,1574.1,1573.8,8.0]
[1744393136205,6.35364,1573.9,1573.8,8.0]
[1744393136941,13.5393,1574.0,1573.8,8.0]
[1744393137125,13.53931,1574.0,1573.8,8.0]
[1744393137328,6.35364,1573.9,1573.8,8.0]
[1744393137510,7.18589,1574.0,1573.8,8.0]
[1744393137716,13.53953,1574.0,1573.8,8.0]
[1744393138110,12.70595,1574.1,1573.8,8.0]
[1744393138345,12.70595,1574.1,1573.9,0.9]
[1744393138346,6.35327,1574.0,1573.9,0.9]
[1744393138571,12.70611,1574.1,1573.9,0.9]
[1744393138837,6.35324,1574.0,1573.9,0.9]
[1744393141377,6.35364,1573.9,1573.8,8.0]
[1744393142210,7.12073,1574.2,1573.8,14.35379]
[1744393142522,0.768,1574.2,1573.9,1.435379]
[1744393142724,3.0,1574.6,1574.2,6.35222]
[1744393142725,6.35143,1574.5,1574.2,6.35222]
[1744393142960,6.35143,1574.5,1574.2,20.7045]
[1744393143257,19.54139,1574.6,1574.2,20.70453]
[1744393143429,19.54143,1574.6,1574.3,8.38440026]
[1744393143649,19.54142,1574.6,1574.3,8.38440026]
[1744393143856,6.3514,1574.5,1574.3,2.03241026]
[1744393144683,0.8331,1574.8,1574.3,2.86041026]
[1744393144889,12.41976,1574.9,1574.5,6.35114]
[1744393145177,1.8331,1575.0,1574.3,7.1799]
[1744393145480,7.12079,1574.8,1574.1,0.7617]
[1744393145678,6.35197,1574.4,1574.2,7.999]
[1744393145849,6.35202,1574.3,1574.2,7.999]
[1744393146464,7.12257,1574.4,1574.2,7.999]
[1744393146465,7.12238,1574.4,1574.2,7.999]
[1744393147140,6.07,1574.6,1574.2,14.35142]
[1744393147141,6.35131,1574.5,1574.2,14.35142]
[1744393147374,19.58769,1574.6,1574.2,16.42808422]
[1744393147547,6.35123,1574.5,1574.2,16.42808422]
[1744393147742,7.58275847,1574.8,1574.4,6.35147]
[1744393147970,6.35049,1574.7,1574.4,6.35147]
[1744393148279,12.70108,1574.7,1574.3,6.41545894]
[1744393148485,6.35161,1574.5,1574.2,17.21018422]
[1744393148640,6.35091,1574.6,1574.3,6.4153846]
[1744393149047,12.70103,1574.7,1574.3,6.4153846]
[1744393149382,7.10274,1574.8,1574.2,10.85777422]
[1744393149583,6.35052,1574.7,1574.3,6.41543735]
[1744393149793,12.70133,1574.7,1574.3,6.35193]
[1744393149957,6.35082,1574.6,1574.4,0.06350748]
[1744393150157,6.35082,1574.6,1574.3,6.35193]
[1744393150373,6.35082,1574.6,1574.4,0.06350789]
[1744393150889,6.35045,1574.7,1574.3,6.35176]
[1744393151042,6.35045,1574.7,1574.4,0.69868532]
[1744393152076,6.35098,1574.6,1574.4,0.635176]
[1744393152282,6.35098,1574.6,1574.3,6.35199]
[1744393152585,12.70112,1574.7,1574.3,6.35199]
[1744393152786,12.7011,1574.7,1574.3,6.35199]
[1744393153384,12.7011,1574.7,1574.4,0.9]
[1744393153699,7.16062,1574.5,1574.4,0.9]
[1744393154182,0.8094,1574.5,1574.4,0.9]
[1744393155785,7.16062,1574.5,1574.4,0.9]
[1744393156299,6.35095,1574.6,1574.4,0.9]
[1744393156458,6.35122,1574.5,1574.4,0.9]
[1744393157356,12.42122,1574.5,1574.4,0.9]
[1744393158402,6.07,1574.5,1574.4,0.9]
[1744393158587,12.42122,1574.5,1574.4,0.9]
[1744393158809,6.07,1574.5,1574.4,0.9]
[1744393159897,12.70041,1574.8,1574.5,6.35115]
[1744393160094,6.35042,1574.7,1574.4,7.976816]
[1744393160318,6.35042,1574.7,1574.4,8.04032224]
[1744393160706,12.70103,1574.7,1574.4,1.625196]
[1744393160906,12.70122,1574.7,1574.4,1.625196]
[1744393161124,6.35042,1574.7,1574.4,1.625196]
[1744393161307,6.35042,1574.7,1574.4,14.39180226]
[1744393161617,12.70035,1574.8,1574.5,1.43918023]
[1744393162032,6.35012,1574.8,1574.5,1.43918023]
[1744393162182,1.0,1575.0,1574.6,6.35078]
[1744393162379,1.0,1575.0,1574.9,7.176]
[1744393162585,0.33125183,1575.5,1575.4,6.34759]
[1744393162818,6.07,1575.7,1575.4,14.94899]
[1744393163019,6.07,1575.7,1575.5,6.41065481]
[1744393163219,6.07,1575.7,1575.5,6.34719]
[1744393163425,6.07,1575.7,1575.4,7.775]
[1744393163426,6.34699,1575.6,1575.4,7.775]
[1744393163596,6.07,1575.7,1575.4,14.90004]
[1744393164134,6.8736,1576.2,1575.6,5.628524]
[1744393164336,0.33107982,1576.3,1576.2,6.34437]
[1744393164539,0.05,1576.4,1576.2,14.11937]
[1744393164718,0.05,1576.4,1576.3,6.34397]
[1744393165081,0.05,1576.4,1576.3,11.23752707]
[1744393165281,0.05,1576.4,1576.3,8.94307478]
[1744393165588,4.8e-06,1576.5,1576.4,10.71646]
[1744393165896,4.8e-06,1576.5,1576.4,10.77987114]
[1744393166299,4.8e-06,1576.5,1576.4,11.63822676]
[1744393166518,4.8e-06,1576.5,1576.4,10.71646]
[1744393166730,4.8e-06,1576.5,1576.4,13.23077165]
[1744393166908,4.8e-06,1576.5,1576.4,10.16735727]
[1744393167113,4.8e-06,1576.5,1576.4,17.93935727]
[1744393167310,4.8e-06,1576.5,1576.4,10.16735727]
[1744393167525,4.8e-06,1576.5,1576.4,17.93935727]
[1744393167830,4.8e-06,1576.5,1576.4,9.61735727]
[1744393168032,4.8e-06,1576.5,1576.4,7.772]
[1744393168406,4.8e-06,1576.5,1576.4,14.11556]
[1744393168718,4.8e-06,1576.5,1576.4,7.772]
[1744393170137,4.8e-06,1576.5,1576.4,7.83542365]